bitfinex/quotes_SOLUSD_20251202
["timestamp","ask_amount","ask_price","bid_price","bid_amount"]
[1764642527776,0.66,128.2,128.17,8.00200782]
[1764642527976,3.18991226,128.2,128.17,8.00200782]
[1764642528577,0.66,128.19,128.17,8.00200782]
[1764642528872,8.64,128.18,128.17,8.00200782]
[1764642530658,8.64,128.18,128.17,8.68200782]
[1764642531875,8.64,128.18,128.17,0.2]
[1764642532679,9.3,128.18,128.17,0.2]
[1764642532887,19.77360292,128.18,128.17,0.2]
[1764642533472,17.24369066,128.18,128.17,0.2]
[1764642533781,11.97207383,128.18,128.17,0.2]
[1764642533982,9.44216157,128.18,128.17,0.2]
[1764642534678,0.66,128.21,128.17,3.40991226]
[1764642534868,8.64,128.2,128.17,3.40991226]
[1764642535067,8.64,128.2,128.18,0.68]
[1764642535268,8.64,128.2,128.18,8.48107165]
[1764642537688,9.3,128.2,128.18,7.80107165]
[1764642538495,17.10033003,128.2,128.17,8.68205988]
[1764642538679,9.3,128.2,128.17,8.68205988]
[1764642540098,8.64,128.2,128.18,0.68]
[1764642540869,0.66,128.24,128.19,2.52991226]
[1764642541092,8.64,128.23,128.2,2.52991226]
[1764642541293,8.64,128.23,128.19,2.52991226]
[1764642541496,9.3,128.23,128.19,2.52991226]
[1764642541670,9.3,128.23,128.2,0.68]
[1764642541870,0.66,128.22,128.19,3.20991226]
[1764642542180,8.64,128.23,128.2,7.80031201]
[1764642542388,0.66,128.22,128.2,7.80031201]
[1764642544067,0.66,128.22,128.19,7.80064853]
[1764642544274,8.45918902,128.22,128.19,7.80064853]
[1764642544682,0.66,128.21,128.19,7.80064853]
[1764642544886,8.64,128.2,128.19,7.80064853]
[1764642546102,8.64,128.2,128.19,8.48064853]
[1764642546994,8.64,128.2,128.19,7.80064853]
[1764642547380,9.3,128.2,128.17,11.95111776]
[1764642547597,9.3,128.2,128.17,12.63111776]
[1764642547809,8.64,128.2,128.18,0.68]
[1764642549086,9.3,128.2,128.17,12.63111776]
[1764642549511,8.64,128.2,128.18,0.68]
[1764642550409,9.3,128.2,128.17,8.68168049]
[1764642551077,9.3,128.2,128.17,12.63111776]
[1764642551296,8.64,128.2,128.17,8.71168049]
[1764642551498,9.36,128.2,128.17,12.66111776]
[1764642552505,8.64,128.2,128.18,4.65943727]
[1764642552880,8.64,128.2,128.19,0.71]
[1764642553404,8.64,128.2,128.19,4.65943727]
[1764642554483,8.64,128.2,128.19,7.8009205]
[1764642556110,8.64,128.2,128.19,8.5109205]
[1764642558098,8.64,128.2,128.19,12.46035777]
[1764642558739,8.64,128.2,128.19,8.5109205]
[1764642559310,8.64,128.2,128.19,12.46035777]
[1764642560616,8.64,128.2,128.19,8.5109205]
[1764642562824,9.36,128.2,128.18,7.80152909]
[1764642562999,0.72,128.19,128.17,8.00192626]
[1764642563321,0.72,128.19,128.17,0.2]
[1764642564601,4.66943727,128.19,128.17,0.2]
[1764642565013,0.72,128.18,128.17,0.2]
[1764642567301,12.61312793,128.18,128.17,0.2]
[1764642569918,21.42307285,128.18,128.17,0.2]
[1764642570227,96.42307285,128.18,128.17,0.2]
[1764642571705,112.73193685,128.18,128.17,0.2]
[1764642572028,100.26097049,128.15,128.14,0.2]
[1764642572212,113.51040776,128.15,128.14,0.2]
[1764642573030,29.87040776,128.15,128.14,0.2]
[1764642573230,29.70046284,128.15,128.14,0.2]
[1764642573635,37.50381828,128.15,128.14,0.2]
[1764642573804,33.55438101,128.15,128.14,0.2]
[1764642574137,37.50381828,128.15,128.14,0.2]
[1764642577345,28.89830127,128.15,128.14,0.2]
[1764642577512,8.64,128.15,128.14,0.2]
[1764642577706,9.3,128.15,128.14,0.2]
[1764642579915,8.64,128.15,128.14,0.2]
[1764642580215,8.64,128.15,128.14,0.9]
[1764642582735,12.58943727,128.15,128.14,0.2]
[1764642582940,8.64,128.15,128.14,0.2]
[1764642583837,8.64,128.15,128.14,0.91]
[1764642587657,8.64,128.15,128.14,0.2]
[1764642592457,8.64,128.15,128.14,8.71396441]
[1764642592865,8.64,128.15,128.14,12.66340168]
[1764642594559,8.64,128.15,128.14,0.2]
[1764642600269,13.27943727,128.15,128.14,0.2]
[1764642600446,13.42159884,128.15,128.14,0.2]
[1764642600646,17.27551701,128.15,128.14,0.2]
[1764642600860,8.64,128.15,128.14,0.2]
[1764642601450,22.23154376,128.15,128.14,0.2]
[1764642601848,16.308864,128.12,128.09,0.2]
[1764642602054,28.20686408,128.1,128.09,0.2]
[1764642602443,16.44607101,128.11,128.09,0.2]
[1764642602766,8.64,128.12,128.09,32.18383827]
[1764642602957,8.64,128.12,128.1,3.94943727]
[1764642603156,8.64,128.12,128.1,4.65943727]
[1764642603362,8.64,128.12,128.11,0.71]
[1764642603961,8.64,128.12,128.11,12.46522916]
[1764642604146,12.44096636,128.18,128.11,31.9797089]
[1764642604348,8.64,128.17,128.13,3.94943727]
[1764642604551,8.64,128.17,128.14,3.94943727]
[1764642604775,8.64,128.17,128.14,4.65943727]
[1764642604959,9.33,128.17,128.14,4.65943727]
[1764642605154,9.33,128.17,128.14,8.51388777]
[1764642605359,13.27943727,128.17,128.14,7.80388777]
[1764642605753,9.33,128.17,128.14,8.51388777]
[1764642606674,19.66211767,128.17,128.13,8.51409571]
[1764642607555,19.66211767,128.17,128.14,0.71]
[1764642607956,8.64,128.17,128.14,8.51379119]
[1764642608472,8.64,128.17,128.14,10.3333909]
[1764642608665,11.85959971,128.17,128.14,7.80379119]
[1764642608871,3.21959971,128.16,128.13,7.8044608]
[1764642609381,3.21959971,128.16,128.13,8.5144608]
[1764642609678,11.02265136,128.16,128.12,7.80505186]
[1764642609856,11.02265136,128.16,128.13,0.71]
[1764642610057,24.948864,128.17,128.13,3.23959971]
[1764642610576,24.948864,128.17,128.14,0.71]
[1764642610577,25.638864,128.17,128.14,0.71]
[1764642610774,8.64,128.17,128.14,0.71]
[1764642610958,9.33,128.17,128.14,0.71]
[1764642611569,8.64,128.17,128.14,3.23959971]
[1764642611779,11.16959971,128.17,128.1,9.30629308]
[1764642611959,8.64,128.17,128.14,0.72]
[1764642612169,8.64,128.17,128.14,3.24959971]
[1764642612565,8.64,128.17,128.15,0.72]
[1764642613059,3.18959971,128.16,128.13,0.72]
[1764642613462,2.52959971,128.16,128.13,0.72]
[1764642613978,19.63191464,128.17,128.13,0.72]
[1764642614157,19.63191464,128.17,128.13,8.52450754]
[1764642614361,9.3,128.17,128.13,8.52450754]
[1764642614561,9.3,128.17,128.14,0.72]
[1764642615379,8.46013156,128.21,128.15,2.52959971]
[1764642615581,11.16959971,128.2,128.15,2.52959971]
[1764642615883,2.52959971,128.19,128.15,8.5229377]
[1764642616058,3.18959971,128.19,128.15,8.5229377]
[1764642616257,3.18959971,128.19,128.16,0.72]
[1764642616656,10.99065101,128.19,128.15,7.8029377]
[1764642616863,10.99065101,128.19,128.15,8.5229377]
[1764642617162,10.33065101,128.19,128.15,8.5229377]
[1764642617375,0.66,128.18,128.15,8.5229377]
[1764642617578,8.64,128.17,128.15,8.5229377]
[1764642619088,8.64,128.17,128.15,7.8029377]
[1764642619281,8.64,128.17,128.16,0.72]
[1764642619494,8.64,128.17,128.16,3.24959971]
[1764642620867,3.18959971,128.2,128.16,0.72]
[1764642621072,8.64,128.19,128.15,28.0313263]
[1764642621277,9.3,128.19,128.16,0.72]
[1764642622288,9.3,128.19,128.16,8.52241412]
[1764642623688,0.66,128.18,128.15,7.80335544]
[1764642623888,18.97073643,128.19,128.15,8.52335544]
[1764642624073,19.63073643,128.19,128.15,8.52335544]
[1764642624998,3.18959971,128.18,128.15,8.52335544]
[1764642625179,0.66,128.18,128.15,8.52335544]
[1764642626318,17.10113672,128.19,128.15,8.52335544]
[1764642626501,19.63073643,128.19,128.15,8.52335544]
[1764642627495,19.63073643,128.19,128.15,7.80335544]
[1764642627698,17.10113672,128.19,128.16,0.72]
[1764642628276,19.63073643,128.19,128.16,0.72]
[1764642629002,8.64,128.19,128.16,8.52240123]
[1764642629600,8.64,128.19,128.17,8.52185815]
[1764642629984,8.64,128.18,128.17,7.80185815]
[1764642630604,8.64,128.18,128.17,8.52185815]
[1764642631306,8.64,128.2,128.17,8.52185815]
[1764642631501,11.82959971,128.2,128.16,7.80264862]
[1764642631696,11.82959971,128.2,128.16,8.52264862]
[1764642631697,19.63035686,128.2,128.16,8.52264862]
[1764642632391,19.63035686,128.2,128.16,7.80264862]
[1764642632594,19.63035686,128.2,128.17,0.72]
[1764642633101,18.97035686,128.2,128.16,8.52264862]
[1764642633291,0.66,128.19,128.16,8.52264862]
[1764642633492,19.63035686,128.2,128.16,8.52264862]
[1764642633689,18.97035686,128.2,128.16,8.52264862]
[1764642634008,0.66,128.19,128.16,8.52264862]
[1764642636010,2.52959971,128.18,128.15,7.80311635]
[1764642636199,8.64,128.17,128.15,8.52311635]
[1764642636386,8.64,128.17,128.15,7.80311635]
[1764642636587,8.64,128.17,128.16,0.72]
[1764642636792,8.64,128.17,128.16,3.24959971]
[1764642638913,8.64,128.17,128.16,11.05234627]
[1764642639714,8.64,128.17,128.16,8.52274656]
[1764642640307,8.64,128.17,128.15,9.30331837]
[1764642640495,9.36,128.17,128.15,9.30331837]
[1764642640694,3.24959971,128.16,128.12,7.80511976]
[1764642640895,2.52959971,128.13,128.09,0.92]
[1764642641112,2.52959971,128.13,128.09,0.2]
[1764642641113,2.52959971,128.11,128.09,0.2]
[1764642641497,3.21959971,128.11,128.09,0.2]
[1764642642007,2.52959971,128.1,128.09,0.2]
[1764642642209,3.21959971,128.1,128.09,0.2]
[1764642643125,10.33584366,128.11,128.09,0.92]
[1764642643414,19.66501937,128.12,128.09,0.92]
[1764642643614,16.44541966,128.12,128.1,0.72]
[1764642644793,8.64,128.12,128.1,8.52640124]
[1764642645702,8.64,128.12,128.11,0.72]
[1764642645901,8.64,128.12,128.1,8.52640124]
[1764642647816,8.64,128.12,128.11,0.72]
[1764642648018,8.64,128.12,128.09,0.2]
[1764642648207,11.16959971,128.12,128.09,0.2]
[1764642648406,11.85959971,128.12,128.09,0.92]
[1764642648837,18.97495885,128.12,128.09,0.2]
[1764642649010,2.52959971,128.1,128.09,0.2]
[1764642649515,3.36176128,128.1,128.09,0.2]
[1764642649912,11.16816252,128.1,128.09,0.2]
[1764642650608,30.09650628,128.1,128.09,0.2]
[1764642651330,11.16816252,128.1,128.09,0.2]
[1764642652104,19.97810744,128.1,128.09,0.2]
[1764642652921,30.09650628,128.1,128.09,0.2]
[1764642653621,19.97810744,128.1,128.09,0.2]
[1764642654525,11.31176128,128.1,128.09,0.2]
[1764642654729,19.66600095,128.1,128.09,0.2]
[1764642655133,28.61810744,128.1,128.09,0.2]
[1764642656018,55.04537028,128.1,128.09,0.2]
[1764642656206,66.30462865,128.1,128.09,0.2]
[1764642656732,49.99576465,128.1,128.09,0.2]
[1764642657025,2.52959971,128.06,128.05,0.2]
[1764642657228,12.00176128,128.06,128.05,0.2]
[1764642658723,19.81060088,128.06,128.05,0.2]
[1764642661735,17.28100117,128.06,128.05,0.2]
[1764642661917,19.81060088,128.06,128.05,0.2]
[1764642662434,7.95100117,128.06,128.05,0.2]
[1764642662631,19.81060088,128.06,128.05,0.2]
[1764642663630,103.6205458,128.06,128.05,0.2]
[1764642664133,106.75276458,128.06,128.05,0.2]
[1764642664717,11.77321995,128.06,128.05,0.2]
[1764642664952,19.14696147,128.09,128.05,0.92]
[1764642665126,19.14696147,128.09,128.06,0.72]
[1764642665127,8.64,128.07,128.06,0.72]
[1764642665933,8.64,128.07,128.05,8.00926243]
[1764642666132,8.64,128.07,128.06,0.72]
[1764642666345,8.64,128.07,128.05,8.00926243]
[1764642666531,8.64,128.07,128.05,8.72926243]
[1764642666839,8.64,128.07,128.06,0.72]
[1764642671132,8.64,128.07,128.05,8.72926243]
[1764642671631,16.44827374,128.07,128.05,0.2]
[1764642671830,12.62869554,128.06,128.05,0.2]
[1764642672525,21.43864046,128.06,128.05,0.2]
[1764642672823,37.74750446,128.06,128.05,0.2]
[1764642673033,33.78981009,128.06,128.05,0.2]
[1764642673224,46.38750446,128.06,128.05,0.2]
[1764642674641,37.02750446,128.06,128.05,0.2]
[1764642674830,8.78216157,128.06,128.05,0.2]
[1764642675236,30.07864046,128.06,128.05,0.2]
[1764642678902,16.308864,128.06,128.05,0.2]
[1764642679022,29.049582,128.08,128.05,0.2]
[1764642679023,7.80783585,128.08,128.05,0.86]
[1764642679222,8.66,128.07,128.06,0.66]
[1764642679423,8.66,128.07,128.05,0.86]
[1764642681345,8.66,128.07,128.05,8.00936356]
[1764642681540,8.66,128.07,128.06,0.66]
[1764642681943,16.46822987,128.07,128.05,0.2]
[1764642682241,20.42592424,128.07,128.05,0.86]
[1764642682423,27.49777777,128.07,128.05,0.86]
[1764642684752,16.46822987,128.07,128.06,0.66]
[1764642685053,16.46822987,128.07,128.05,0.86]
[1764642685251,8.66,128.07,128.05,8.66929952]
[1764642685452,16.308864,128.11,128.06,11.6895479]
[1764642685632,8.66,128.1,128.06,0.66]
[1764642685957,8.66,128.1,128.07,11.6895479]
[1764642686252,8.66,128.1,128.08,11.0295479]
[1764642686457,8.66,128.1,128.09,0.66]
[1764642686633,8.66,128.1,128.09,8.46701069]
[1764642688351,7.80419919,128.14,128.09,19.49655859]
[1764642688549,8.64,128.13,128.11,11.0295479]
[1764642688933,8.64,128.13,128.12,0.66]
[1764642690656,8.64,128.13,128.12,8.46518264]
[1764642690858,8.66,128.14,128.12,19.49473054]
[1764642691089,15.11069727,128.19,128.13,11.6995479]
[1764642691236,8.66,128.17,128.14,11.6995479]
[1764642691654,8.66,128.17,128.15,0.67]
[1764642692162,0.7,128.16,128.13,0.67]
[1764642692341,11.17170947,128.15,128.11,0.67]
[1764642692638,8.66,128.14,128.11,0.67]
[1764642692839,16.46396569,128.14,128.11,0.67]
[1764642693658,8.66,128.14,128.11,8.47575487]
[1764642694160,8.66,128.14,128.12,0.67]
[1764642695250,19.6895479,128.14,128.08,19.51818202]
[1764642695452,11.0295479,128.13,128.1,0.67]
[1764642695658,19.6895479,128.14,128.1,0.67]
[1764642695862,8.66,128.14,128.1,11.6995479]
[1764642696062,8.66,128.14,128.11,0.67]
[1764642696475,19.6895479,128.14,128.11,0.67]
[1764642697675,27.49361143,128.14,128.11,0.67]
[1764642697980,11.0295479,128.13,128.11,0.67]
[1764642698158,11.7295479,128.13,128.1,7.80591466]
[1764642698361,11.7295479,128.13,128.1,8.47591466]
[1764642698667,11.0295479,128.13,128.1,8.47591466]
[1764642699448,8.66,128.12,128.1,8.47591466]
[1764642699776,11.0295479,128.11,128.08,8.47753053]
[1764642700070,8.64,128.1,128.08,8.47753053]
[1764642700273,8.64,128.1,128.09,0.67]
[1764642701401,8.64,128.12,128.09,19.50655859]
[1764642701577,8.64,128.12,128.1,11.0295479]
[1764642701779,8.64,128.12,128.1,11.6995479]
[1764642702083,11.0295479,128.15,128.11,0.67]
[1764642702284,8.64,128.14,128.11,0.67]
[1764642703179,8.64,128.14,128.11,8.47536068]
[1764642704075,8.64,128.14,128.11,7.80536068]
[1764642704276,8.64,128.14,128.12,0.67]
[1764642705987,8.64,128.14,128.12,8.47475093]
[1764642707274,8.64,128.14,128.12,0.67]
[1764642710074,13.31450206,128.14,128.1,27.99134801]
[1764642710281,21.11868552,128.14,128.1,8.47640124]
[1764642710479,21.11868552,128.14,128.11,0.67]
[1764642711581,20.39868552,128.14,128.11,8.47566191]
[1764642712889,20.39868552,128.14,128.11,0.67]
[1764642713264,21.11868552,128.14,128.11,0.67]
[1764642713466,0.72,128.13,128.1,7.80640124]
[1764642713664,8.64,128.12,128.1,8.47640124]
[1764642713860,8.64,128.12,128.1,0.67]
[1764642714074,8.64,128.12,128.09,8.47688176]
[1764642714264,9.36,128.12,128.09,8.47688176]
[1764642714471,3.95450206,128.11,128.09,0.67]
[1764642714669,8.64,128.1,128.08,7.8073903]
[1764642714876,8.64,128.1,128.08,8.4773903]
[1764642715792,8.64,128.1,128.07,7.80822987]
[1764642716102,8.64,128.1,128.09,0.67]
[1764642718786,8.64,128.1,128.09,8.47701069]
[1764642722792,8.64,128.1,128.07,2.17]
[1764642722994,9.36,128.1,128.07,9.97808588]
[1764642723864,12.48151275,128.09,128.05,8.00884797]
[1764642724066,3.95450206,128.08,128.05,0.2]
[1764642724266,8.64,128.07,128.06,4.62450206]
[1764642724470,8.64,128.07,128.06,0.67]
[1764642724668,3.95450206,128.1,128.06,0.67]
[1764642724990,8.64,128.09,128.06,0.67]
[1764642726198,8.64,128.09,128.06,12.43312616]
[1764642726600,8.64,128.09,128.07,0.67]
[1764642727579,8.64,128.09,128.07,8.47798862]
[1764642727988,9.36,128.09,128.07,7.80798862]
[1764642728303,8.64,128.09,128.07,8.47798862]
[1764642728709,9.36,128.09,128.06,8.47863625]
[1764642728873,9.36,128.09,128.06,7.80863625]
[1764642729502,9.36,128.09,128.06,8.47863625]
[1764642730312,18.97999602,128.09,128.05,8.67920516]
[1764642730483,18.97999602,128.09,128.05,0.2]
[1764642730678,18.97999602,128.09,128.05,0.87]
[1764642730879,0.72,128.08,128.05,0.87]
[1764642731436,0.72,128.08,128.05,8.67944825]
[1764642731803,3.25276049,128.08,128.05,0.87]
[1764642731991,3.25276049,128.08,128.05,8.68936847]
[1764642731992,2.53276049,128.08,128.05,8.68936847]
[1764642732200,19.68999602,128.09,128.05,8.68936847]
[1764642732499,19.68999602,128.09,128.05,8.00936847]
[1764642732500,18.97999602,128.09,128.05,8.00936847]
[1764642732798,18.97999602,128.09,128.05,0.2]
[1764642732799,3.24276049,128.08,128.05,0.2]
[1764642732983,0.71,128.08,128.05,8.6894199]
[1764642733188,0.71,128.08,128.05,8.0094199]
[1764642733388,3.24276049,128.08,128.05,8.0094199]
[1764642734113,11.05047361,128.08,128.05,8.0094199]
[1764642735075,11.05047361,128.08,128.05,0.2]
[1764642736220,102.65156941,128.06,128.05,0.2]
[1764642736424,36.29156941,128.06,128.05,0.2]
[1764642736620,37.00156941,128.06,128.05,0.2]
[1764642737484,37.14373098,128.06,128.05,0.2]
[1764642737988,112.14373098,128.06,128.05,0.2]
[1764642738408,119.95257058,128.06,128.05,0.2]
[1764642739009,130.08361254,128.06,128.05,1e-08]
[1764642739310,130.08361254,128.06,128.04,1e-08]
[1764642739311,8.95210649,128.05,128.04,1e-08]
[1764642739500,22.32590894,128.05,128.04,1e-08]
[1764642740785,30.13535837,128.05,128.04,1e-08]
[1764642741198,38.77535837,128.05,128.04,1e-08]
[1764642742095,28.64431641,128.05,128.04,1e-08]
[1764642745211,35.46101884,128.05,128.04,1e-08]
[1764642745418,44.81101884,128.05,128.04,1e-08]
[1764642745597,44.95318041,128.05,128.04,1e-08]
[1764642747398,47.4859409,128.05,128.04,1e-08]
[1764642748937,31.1770769,128.05,128.04,1e-08]
[1764642750427,27.79373098,128.02,128.01,0.2]
[1764642750619,36.43373098,128.02,128.01,0.2]
[1764642750817,37.14373098,128.02,128.01,0.2]
[1764642751739,37.14373098,128.02,128.01,1e-08]
[1764642752037,44.95501046,128.02,128.01,1e-08]
[1764642752421,75.85216157,128.01,128.0,1e-08]
[1764642752610,87.19486698,128.01,128.0,1e-08]
[1764642753016,100.26097049,127.99,127.98,0.2]
[1764642753224,83.80994492,127.97,127.96,0.2]
[1764642753425,95.85486698,127.97,127.96,0.2]
[1764642754439,103.66919846,127.97,127.96,0.2]
[1764642754742,19.14925354,127.97,127.96,0.2]
[1764642754948,8.80216157,127.97,127.96,0.2]
[1764642755242,8.66,127.97,127.96,0.89]
[1764642756442,16.47433148,127.97,127.96,0.89]
[1764642756817,11.19276049,127.97,127.96,0.89]
[1764642757642,8.66,127.97,127.96,0.89]
[1764642757820,16.61649305,127.97,127.96,0.89]
[1764642758019,19.14925354,127.97,127.96,0.89]
[1764642758437,16.61649305,127.97,127.96,0.89]
[1764642759138,8.80216157,127.97,127.96,0.89]
[1764642759438,7.81226992,128.01,127.96,3.42276049]
[1764642759640,8.66,128.0,127.97,0.69]
[1764642761037,8.66,128.0,127.98,2.53276049]
[1764642761223,8.66,128.0,127.99,3.22276049]
[1764642761536,8.66,128.0,127.99,0.69]
[1764642763144,7.81311039,127.99,127.97,0.67]
[1764642763322,8.66,127.98,127.97,0.67]
[1764642767347,16.61588246,127.98,127.97,0.67]
[1764642768652,8.66,127.98,127.97,0.67]
[1764642770262,8.66,127.98,127.97,8.48433148]
[1764642771161,8.66,127.98,127.97,11.01709197]
[1764642771339,17.018864,128.04,127.97,30.55292067]
[1764642771340,26.65193818,128.04,127.97,30.55292067]
[1764642771540,8.66,128.03,127.99,2.53276049]
[1764642771742,8.66,128.03,128.0,7.8125]
[1764642771948,8.66,128.03,128.0,8.4825]
[1764642772148,11.19276049,128.03,128.01,0.67]
[1764642772462,19.71347106,128.03,128.0,0.67]
[1764642773160,11.19276049,128.03,128.0,0.67]
[1764642773850,8.66,128.03,128.0,8.48229741]
[1764642774155,8.66,128.03,128.01,0.67]
[1764642775365,19.00360231,128.03,128.01,0.67]
[1764642776039,19.00360231,128.03,128.0,0.67]
[1764642776739,11.19276049,128.03,128.0,0.67]
[1764642776950,19.00344134,128.03,128.0,0.67]
[1764642779044,16.47068085,128.03,128.0,0.67]
[1764642779242,16.308864,128.01,128.0,0.67]
[1764642779466,24.948864,128.01,127.99,0.67]
[1764642779653,8.64,128.01,128.0,0.67]
[1764642781181,8.64,128.03,128.0,11.01526049]
[1764642781344,8.64,128.03,128.01,2.53276049]
[1764642781669,8.64,128.03,128.01,3.20276049]
[1764642781876,8.64,128.03,128.02,0.67]
[1764642785079,8.64,128.03,128.02,8.48127948]
[1764642786046,7.80968339,128.05,128.02,8.48127948]
[1764642786246,8.64,128.03,128.02,7.81127948]
[1764642786872,8.64,128.06,128.02,11.01403997]
[1764642787045,8.64,128.06,128.03,3.20276049]
[1764642787247,8.64,128.06,128.03,0.67]
[1764642787575,8.64,128.06,128.04,0.67]
[1764642787747,8.64,128.06,128.04,8.47995642]
[1764642788368,8.64,128.06,128.05,0.67]
[1764642789098,24.11553285,128.1,128.05,0.67]
[1764642789253,8.64,128.09,128.06,2.53276049]
[1764642789755,8.64,128.09,128.07,8.47813301]
[1764642790155,8.64,128.09,128.08,0.67]
[1764642790355,20.405174,128.09,128.04,0.67]
[1764642790560,3.95803625,128.06,128.03,7.81066937]
[1764642790769,8.64,128.05,128.03,8.48066937]
[1764642791070,8.64,128.05,128.04,0.67]
[1764642792054,8.64,128.05,128.02,7.81092158]
[1764642792269,8.64,128.05,128.04,0.71]
[1764642793365,7.80697884,128.1,128.04,4.66803625]
[1764642793570,7.80697884,128.1,128.05,3.95803625]
[1764642793571,8.64,128.09,128.05,3.95803625]
[1764642793776,8.64,128.09,128.05,4.66803625]
[1764642793963,8.64,128.09,128.06,8.5188396]
[1764642794482,8.64,128.09,128.07,0.71]
[1764642796077,8.64,128.09,128.07,8.5179321]
[1764642796371,8.64,128.11,128.08,3.95803625]
[1764642796572,8.64,128.11,128.09,3.95803625]
[1764642796763,8.64,128.11,128.09,4.66803625]
[1764642796959,8.64,128.11,128.07,7.8079321]
[1764642797172,13.27803625,128.11,128.07,0.71]
[1764642797369,3.95803625,128.1,128.07,0.71]
[1764642797756,3.95803625,128.1,128.04,3.95803625]
[1764642797962,9.32,128.11,128.05,4.66803625]
[1764642798190,11.76499652,128.1,128.05,12.47712134]
[1764642798378,11.76499652,128.1,128.06,0.71]
[1764642798686,3.95803625,128.08,128.05,0.71]
[1764642798877,8.64,128.07,128.05,0.71]
[1764642800388,12.59803625,128.07,128.04,7.80956303]
[1764642800701,12.59803625,128.07,128.04,8.51956303]
[1764642801055,8.64,128.07,128.05,0.71]
[1764642804188,4.63803625,128.06,128.02,8.52081142]
[1764642804689,3.95803625,128.06,128.03,0.71]
[1764642805058,4.63803625,128.06,128.03,0.71]
[1764642805585,4.63803625,128.06,128.02,8.52081142]
[1764642805893,4.63803625,128.05,128.01,0.71]
[1764642806085,8.64,128.04,128.01,0.71]
[1764642806508,8.64,128.04,128.01,8.52187842]
[1764642806771,8.64,128.04,128.02,3.95803625]
[1764642806975,8.64,128.04,128.02,0.71]
[1764642807282,8.64,128.04,128.03,0.71]
[1764642807892,8.64,128.04,128.03,8.52066937]
[1764642808066,8.64,128.04,128.01,0.71]
[1764642808990,8.64,128.04,128.01,8.52164325]
[1764642809165,12.59803625,128.04,128.01,8.52164325]
[1764642809593,8.64,128.04,128.01,8.52164325]
[1764642809894,8.64,128.04,128.02,0.71]
[1764642810270,8.64,128.04,128.02,8.52125599]
[1764642810470,4.63803625,128.08,128.03,3.95803625]
[1764642810698,8.64,128.07,128.03,4.66803625]
[1764642810896,8.64,128.07,128.04,0.71]
[1764642812187,8.64,128.07,128.04,8.51962843]
[1764642812800,13.27803625,128.07,128.04,8.51962843]
[1764642812974,8.64,128.07,128.04,8.51962843]
[1764642813794,8.64,128.07,128.04,0.71]
[1764642815197,8.64,128.07,128.05,3.95803625]
[1764642815706,8.64,128.07,128.06,0.71]
[1764642816606,8.64,128.07,128.04,10.01997196]
[1764642816777,8.64,128.07,128.04,9.30997196]
[1764642816978,8.64,128.07,128.05,0.72]
[1764642817600,8.64,128.07,128.05,8.52942228]
[1764642817808,8.64,128.07,128.04,9.30980564]
[1764642817982,8.64,128.07,128.04,10.02980564]
[1764642818298,8.64,128.07,128.04,8.52980564]
[1764642818900,4.65803625,128.06,128.01,20.98690025]
[1764642819090,4.65803625,128.06,128.01,8.53188969]
[1764642819091,3.95803625,128.05,128.01,8.53188969]
[1764642819415,8.64,128.04,128.01,8.53188969]
[1764642819700,8.64,128.04,128.01,7.81188969]
[1764642819911,8.64,128.04,128.02,0.72]
[1764642820301,8.64,128.04,128.02,4.67803625]
[1764642820506,8.64,128.04,128.03,0.72]
[1764642820896,8.64,128.04,128.03,8.53066937]